bitfinex-derivatives/quotes_ETHF0:USTF0_20250214
["timestamp","ask_amount","ask_price","bid_price","bid_amount"]
[1739565047920,0.72835,2744.7,2744.6,0.73382657]
[1739565048118,0.5591,2744.8,2744.6,0.00546657]
[1739565048316,0.56306657,2745.1,2744.7,6.02129859]
[1739565048519,0.00546657,2745.1,2745.0,3.93607]
[1739565048913,40.80546657,2745.1,2745.0,3.93607]
[1739565049526,41.53370657,2745.1,2745.0,3.2078]
[1739565049824,0.72827,2745.0,2744.9,1.32048]
[1739565050022,40.80546657,2745.1,2745.0,0.72827]
[1739565050222,40.80546657,2745.1,2745.0,6.74956859]
[1739565050525,0.00546657,2745.1,2745.0,6.74956859]
[1739565050924,40.80546657,2745.1,2745.0,6.74956859]
[1739565051125,0.00546657,2745.1,2745.0,6.74956859]
[1739565051630,40.80546657,2745.1,2745.0,6.74956859]
[1739565052225,0.00546657,2745.1,2745.0,6.74956859]
[1739565053231,40.80546657,2745.1,2745.0,6.74956859]
[1739565054831,40.80546657,2745.1,2745.0,7.11436859]
[1739565056535,0.00546657,2745.1,2745.0,7.11436859]
[1739565057927,0.73370657,2745.1,2745.0,3.5726]
[1739565058129,0.00546657,2745.1,2744.7,3.2078]
[1739565058434,0.72832,2744.9,2744.8,0.72831]
[1739565058633,0.72832,2744.8,2744.7,3.2078]
[1739565058828,0.72832,2744.8,2744.6,0.00546657]
[1739565058829,0.5868,2744.8,2744.6,0.00546657]
[1739565059028,0.72835,2744.7,2744.6,3.21326657]
[1739565059537,0.72835,2744.7,2744.6,3.94164657]
[1739565060423,0.5868,2744.8,2744.7,0.72835]
[1739565060633,1.31512,2744.8,2744.7,0.72835]
[1739565061133,0.5868,2744.8,2744.6,3.21326657]
[1739565061340,0.72835,2744.7,2744.6,3.94161657]
[1739565061835,0.72835,2744.7,2744.6,3.21326657]
[1739565062338,0.5868,2744.8,2744.6,3.21326657]
[1739565062637,1.31514,2744.8,2744.7,0.72835]
[1739565064137,1.31512,2744.8,2744.7,0.72835]
[1739565064330,0.5868,2744.8,2744.7,0.72835]
[1739565064530,1.31512,2744.8,2744.7,0.72835]
[1739565064732,0.5868,2744.8,2744.7,0.72835]
[1739565064932,1.31512,2744.8,2744.7,0.72835]
[1739565066235,0.72835,2744.7,2744.6,3.94162657]
[1739565067342,40.8,2744.9,2744.8,0.72832]
[1739565067534,0.00546657,2745.1,2745.0,0.72827]
[1739565067733,0.00546657,2745.1,2745.0,6.74956859]
[1739565072539,0.00546657,2745.1,2745.0,8.37456859]
[1739565074834,0.00546657,2745.1,2745.0,8.73936859]
[1739565076136,0.73370657,2745.1,2745.0,3.2078]
[1739565076734,0.72827,2745.0,2744.9,2.35328]
[1739565077135,0.00546657,2745.1,2745.0,0.72827]
[1739565077332,0.00546657,2745.1,2745.0,3.93607]
[1739565077938,0.73370657,2745.1,2745.0,3.2078]
[1739565078141,0.73370657,2745.1,2744.6,0.00546657]
[1739565078142,2.81896516,2745.1,2744.6,0.73382657]
[1739565078346,0.72835,2744.7,2744.6,0.73382657]
[1739565078644,0.72835,2744.7,2744.6,0.00546657]
[1739565079239,41.52835,2744.7,2744.6,0.00546657]
[1739565083141,40.8,2744.7,2744.6,0.73384657]
[1739565084248,41.52835,2744.7,2744.6,0.73384657]
[1739565085348,41.52835,2744.7,2744.6,0.00546657]
[1739565092243,41.52835,2744.7,2744.6,0.73384657]
[1739565092853,41.52835,2744.7,2744.6,0.00546657]
[1739565093154,41.52835,2744.7,2744.6,0.73384657]
[1739565093357,41.52835,2744.7,2744.6,0.00546657]
[1739565096950,41.52835,2744.7,2744.6,0.73384657]
[1739565097363,41.52835,2744.7,2744.6,0.00546657]
[1739565097856,41.52835,2744.7,2744.6,0.73384657]
[1739565098555,41.52835,2744.7,2744.6,0.00546657]
[1739565099054,41.52835,2744.7,2744.6,0.73384657]
[1739565099448,41.52835,2744.7,2744.6,0.00546657]
[1739565100155,41.52835,2744.7,2744.6,0.73384657]
[1739565100553,0.73372657,2745.1,2744.6,0.73384657]
[1739565100753,0.73372657,2745.1,2745.0,0.72827]
[1739565101154,41.53372657,2745.1,2745.0,1.26587]
[1739565102059,41.53370657,2745.1,2745.0,1.26587]
[1739565103061,41.53370657,2745.1,2745.0,0.5376]
[1739565103262,41.53370657,2745.1,2745.0,1.26587]
[1739565103654,40.80546657,2745.1,2745.0,4.64816859]
[1739565104455,0.72811,2745.6,2745.0,3.91989859]
[1739565104666,1.1043,2746.0,2745.5,3.2078]
[1739565104966,40.8,2745.9,2745.7,0.72807]
[1739565105156,0.72806,2745.8,2745.7,0.72807]
[1739565105763,41.52806,2745.8,2745.6,1.8436]
[1739565105956,41.52807,2745.8,2745.6,1.8436]
[1739565106263,40.8,2745.8,2745.6,1.8436]
[1739565106558,41.52807,2745.8,2745.7,0.72808]
[1739565106865,41.52807,2745.8,2745.6,1.8436]
[1739565107062,41.52806,2745.8,2745.7,0.72808]
[1739565107367,41.52806,2745.8,2745.6,1.1155]
[1739565107758,40.8,2745.8,2745.7,0.72808]
[1739565108266,40.8,2745.8,2745.7,2.35208]
[1739565111155,0.00546657,2746.0,2745.7,1.624]
[1739565111364,0.00546657,2746.0,2745.9,3.93583]
[1739565113965,0.73346657,2746.0,2745.9,3.93583]
[1739565115972,0.00546657,2746.0,2745.9,3.93583]
[1739565116273,0.73346657,2746.0,2745.9,3.93583]
[1739565116570,0.00546657,2746.0,2745.9,3.93583]
[1739565116971,0.00546657,2746.0,2745.9,6.74932859]
[1739565122265,0.00546657,2746.0,2745.9,3.2078]
[1739565122470,0.00546657,2746.0,2745.7,0.18079811]
[1739565122471,0.72807,2745.8,2745.7,0.72807]
[1739565122672,0.72807,2745.8,2745.7,2.35107]
[1739565122872,41.52807,2745.8,2745.7,2.35107]
[1739565123380,40.8,2745.8,2745.7,2.35107]
[1739565123871,0.00546657,2746.0,2745.7,7.623]
[1739565124071,0.00546657,2746.0,2745.9,6.74932859]
[1739565124574,40.8,2746.5,2745.9,6.74932859]
[1739565124870,0.5942,2746.7,2746.6,0.72785]
[1739565125069,0.5942,2746.7,2746.6,2.35085]
[1739565125271,41.3942,2746.7,2746.6,2.35085]
[1739565125776,42.12202,2746.7,2746.6,1.623]
[1739565126475,0.72787,2746.5,2746.4,3.21326657]
[1739565126675,0.72787,2746.5,2746.4,0.00546657]
[1739565127172,0.72803,2745.9,2745.8,7.35249859]
[1739565127373,0.72802,2746.0,2745.8,5.16453859]
[1739565127577,40.8,2745.9,2745.8,5.16453859]
[1739565127779,40.8,2745.9,2745.8,4.43649859]
[1739565127974,41.52803,2745.9,2745.8,1.623]
[1739565128374,40.8,2745.9,2745.8,2.35106]
[1739565132076,3.21326657,2746.9,2745.8,4.43649859]
[1739565132278,0.72787,2746.5,2746.4,3.93569]
[1739565132484,0.72787,2746.5,2746.4,3.2078]
[1739565133186,41.52783,2746.7,2746.5,0.72785]
[1739565133479,41.52783,2746.7,2746.6,0.72785]
[1739565134083,40.8,2746.7,2746.6,0.72785]
[1739565134874,40.8,2746.7,2746.6,1.83565]
[1739565135584,0.00546657,2746.9,2746.6,1.1078]
[1739565135884,0.00546657,2746.9,2746.8,6.74908859]
[1739565136087,0.00546657,2746.9,2746.8,8.37208859]
[1739565136480,0.00546657,2746.9,2746.8,5.55859]
[1739565136674,40.80546657,2746.9,2746.8,5.55859]
[1739565137987,41.53323657,2746.9,2746.8,3.2078]
[1739565139387,0.72782,2746.7,2746.6,1.623]
[1739565139987,1.28412,2746.7,2746.6,1.623]
[1739565140985,0.5563,2746.7,2746.3,2.34992]
[1739565141179,0.72793,2746.3,2746.2,4.8298]
[1739565141381,0.72793,2746.3,2746.2,5.55775]
[1739565141780,0.72793,2746.3,2746.2,3.93575]
[1739565142489,0.72793,2746.3,2746.2,3.2078]
[1739565143184,0.5873,2746.6,2746.2,3.93575]
[1739565143389,0.72791,2746.4,2746.3,0.72792]
[1739565143688,0.5563,2746.7,2746.2,6.02129859]
[1739565143887,0.5563,2746.7,2746.6,0.72785]
[1739565144190,0.5563,2746.7,2746.5,5.16334859]
[1739565144395,0.72785,2746.6,2746.5,5.16334859]
[1739565144590,1.28414,2746.7,2746.6,0.72785]
[1739565144888,0.5563,2746.7,2746.6,0.72785]
[1739565145182,0.5563,2746.7,2746.5,7.64329859]
[1739565145485,0.5563,2746.7,2746.6,0.72785]
[1739565145677,40.80546657,2746.9,2746.8,0.72779]
[1739565145886,40.80546657,2746.9,2746.8,6.74908859]
[1739565149984,0.00546657,2746.9,2746.8,6.74908859]
[1739565151291,0.00546657,2746.9,2746.5,3.2078]
[1739565151495,1.81959,2746.7,2746.2,4.8298]
[1739565151685,0.5928,2746.6,2746.2,4.8298]
[1739565151886,0.5928,2746.6,2746.3,0.72792]
[1739565151887,0.72792,2746.4,2746.3,0.72792]
[1739565152088,0.72793,2746.3,2746.2,5.55774]
[1739565152384,0.72793,2746.3,2746.2,3.2078]
[1739565152589,41.52793,2746.3,2746.2,3.2078]
[1739565154092,41.52793,2746.3,2746.2,3.93575]
[1739565154692,41.52793,2746.3,2746.2,3.2078]
[1739565156787,41.52793,2746.3,2746.2,3.93575]
[1739565156990,40.8,2746.3,2746.2,3.93575]
[1739565157395,41.52793,2746.3,2746.2,3.93575]
[1739565157592,41.52793,2746.3,2746.2,3.2078]
[1739565158090,41.52793,2746.3,2746.2,3.93575]
[1739565158491,41.52793,2746.3,2746.2,3.2078]
[1739565158697,40.8,2746.3,2745.9,3.2078]
[1739565159000,0.728,2746.0,2745.9,3.2078]
[1739565160893,0.728,2746.0,2745.9,3.93583]
[1739565161099,0.728,2746.0,2745.9,3.2078]
[1739565163601,0.72808,2745.7,2745.6,0.00546657]
[1739565166705,6.0,2745.7,2745.0,3.2078]
[1739565166917,0.72824,2745.1,2745.0,3.2078]
[1739565167101,0.72832,2744.8,2744.7,1.1098]
[1739565167300,0.72832,2744.8,2744.6,3.93616]
[1739565167301,40.8,2744.8,2744.6,3.93616]
[1739565167509,0.72835,2744.7,2744.6,3.93616]
[1739565168100,41.52833,2744.8,2744.7,0.72835]
[1739565168302,0.72835,2744.7,2744.6,3.93618]
[1739565168496,0.72835,2744.7,2744.6,3.2078]
[1739565170011,0.7284,2744.5,2744.4,0.73389657]
[1739565170311,0.7284,2744.5,2744.4,0.00546657]
[1739565171608,6.7284,2744.5,2743.9,3.93634]
[1739565171805,6.7284,2744.5,2743.9,3.2078]
[1739565171806,0.72854,2744.0,2743.9,3.2078]
[1739565172513,41.52854,2744.0,2743.9,3.2078]
[1739565173411,41.52854,2744.0,2743.9,3.93636]
[1739565173613,0.72852,2744.1,2744.0,0.72852]
[1739565175111,0.72852,2744.1,2744.0,0.72854]
[1739565175408,0.72853,2744.1,2744.0,0.72853]
[1739565176106,40.8,2744.1,2744.0,0.72854]
[1739565176714,1.30893,2744.4,2744.3,0.72846]
[1739565178010,0.72846,2744.3,2744.2,3.93627]
[1739565178311,0.5805,2744.4,2744.3,0.72846]
[1739565178510,1.30893,2744.4,2744.3,0.72846]
[1739565179511,0.5805,2744.4,2744.3,0.72846]
[1739565179711,1.30893,2744.4,2744.3,0.72846]
[1739565180108,0.5805,2744.4,2744.3,0.72846]
[1739565180308,40.8,2744.5,2744.2,3.2078]
[1739565180309,40.8,2744.5,2744.4,0.72843]
[1739565180717,0.72843,2744.4,2744.3,0.72843]
[1739565181510,41.52841,2744.5,2744.4,0.72843]
[1739565181716,41.5284,2744.5,2744.4,0.72843]
[1739565182111,40.8,2744.5,2744.4,0.72843]
[1739565183413,0.72844,2744.4,2744.3,0.72843]
[1739565183614,40.8,2744.5,2744.2,3.2078]
[1739565183817,0.72846,2744.3,2744.2,3.2078]
[1739565184711,0.5436,2744.4,2744.2,3.2078]
[1739565185016,1.27206,2744.4,2744.3,0.72846]
[1739565185716,0.5436,2744.4,2744.2,3.2078]
[1739565185914,0.72846,2744.3,2744.2,3.2078]
[1739565189319,0.72846,2744.3,2744.2,3.93628]
[1739565189625,0.72846,2744.3,2744.2,3.2078]
[1739565190524,1.31206,2744.3,2744.2,3.2078]
[1739565192515,0.72846,2744.3,2744.2,3.93628]
[1739565192922,0.72846,2744.3,2744.2,3.2078]
[1739565193116,0.72854,2744.0,2743.9,3.2078]
[1739565194126,41.52854,2744.0,2743.9,3.2078]
[1739565198038,0.72856,2743.9,2743.8,1.84017]
[1739565199132,41.52856,2743.9,2743.8,1.84017]
[1739565201021,41.52856,2743.9,2743.8,1.1116]
[1739565202032,41.52856,2743.9,2743.8,1.84019]
[1739565202234,41.52856,2743.9,2743.8,1.1116]
[1739565202632,41.52856,2743.9,2743.8,1.84019]
[1739565202832,41.52856,2743.9,2743.8,1.1116]
[1739565205937,41.52856,2743.9,2743.8,1.84019]
[1739565206138,41.52856,2743.9,2743.8,1.1116]
[1739565206838,40.8,2743.9,2743.6,3.7938]
[1739565207141,40.8,2743.9,2742.8,3.2078]
[1739565207142,0.7288,2743.0,2742.8,3.2078]
[1739565207338,0.72883,2742.9,2742.8,1.27595]
[1739565207841,40.8,2742.9,2742.8,1.27595]
[1739565208038,40.8,2742.9,2742.8,4.48375]
[1739565208633,40.8,2742.9,2742.8,6.10575]
[1739565209236,41.52883,2742.9,2742.8,5.3769]
[1739565209436,41.52883,2742.9,2742.8,3.7549]
[1739565210643,41.52883,2742.9,2742.8,0.5471]
[1739565210837,0.72885,2742.8,2742.7,1.1152]
[1739565211245,2.81349859,2742.8,2742.5,3.2078]
[1739565211444,0.72899,2742.3,2742.2,4.9048]
[1739565212047,0.72899,2742.3,2742.2,3.7879]
[1739565212249,0.5471,2742.4,2742.0,3.2078]
[1739565212553,0.729,2742.3,2742.0,3.2078]
[1739565212742,40.8,2742.2,2742.0,3.93686]
[1739565212944,0.72904,2742.1,2742.0,3.2078]
[1739565214152,0.72909,2741.9,2741.8,2.44041]
[1739565214353,0.72909,2741.9,2741.8,1.7113]
[1739565215149,40.8,2742.2,2741.8,1.7113]
[1739565215551,0.72908,2742.0,2741.9,0.72908]
[1739565215750,40.8,2742.2,2742.1,0.72904]
[1739565216153,0.729,2742.3,2742.1,0.72904]
[1739565216352,1.82221,2742.7,2742.0,3.2078]
[1739565216556,0.72903,2742.2,2742.0,3.93685]
[1739565216951,0.72903,2742.2,2742.0,3.2078]
[1739565217260,0.72898,2742.4,2742.2,0.729]
[1739565217465,40.8,2742.5,2742.0,3.2078]
[1739565217756,0.729,2742.3,2742.2,0.729]
[1739565218154,0.72902,2742.2,2742.1,0.72903]
[1739565218353,0.72904,2742.1,2742.0,3.2078]
[1739565219462,43.61349859,2742.5,2742.0,3.2078]
[1739565219762,0.72902,2742.2,2742.1,0.72903]
[1739565220759,40.8,2742.5,2742.0,3.2078]
[1739565220959,0.72904,2742.1,2742.0,3.93685]
[1739565221560,0.72904,2742.1,2742.0,3.2078]
[1739565222859,40.8,2742.5,2742.0,3.2078]
[1739565223057,42.62236,2742.5,2742.0,3.2078]
[1739565223262,0.72904,2742.1,2742.0,3.2078]
[1739565224167,0.72904,2742.1,2742.0,3.93687]
[1739565224561,40.8,2742.5,2742.0,3.2078]
[1739565224764,0.72901,2742.3,2742.2,0.729]
[1739565224964,40.8,2742.5,2742.0,6.02129859]
[1739565225264,0.72901,2742.3,2742.2,0.72899]
[1739565225660,0.72903,2742.2,2742.1,0.72902]
[1739565225860,0.72904,2742.1,2742.0,3.93685]
[1739565226167,0.72904,2742.1,2742.0,3.2078]
[1739565226372,0.72907,2742.0,2741.9,0.72908]
[1739565226864,0.72909,2741.9,2741.8,2.44039]
[1739565227760,0.5619,2742.1,2741.8,1.7113]
[1739565227962,0.72906,2742.1,2742.0,0.72903]
[1739565228157,0.72906,2742.1,2742.0,3.93683]
[1739565228562,0.72904,2742.2,2742.1,0.72901]
[1739565229769,0.72901,2742.3,2742.2,0.72899]
[1739565230967,0.72904,2742.2,2742.1,0.72902]
[1739565233064,41.52896,2742.5,2742.4,0.72896]
[1739565233269,40.8,2742.5,2742.4,3.93676]
[1739565233467,0.72882,2743.0,2742.9,0.72882]
[1739565233667,4.76763,2743.6,2742.5,1.82232]
[1739565233668,3.2078,2743.5,2742.7,4.8308]
[1739565233979,0.72874,2743.3,2743.1,3.93657]
[1739565234467,40.80546657,2743.2,2742.8,3.2078]
[1739565234973,0.72882,2743.0,2742.8,3.2078]
[1739565235174,0.72882,2743.0,2742.8,3.93664]
[1739565235375,1.137,2743.1,2742.8,3.2078]
[1739565235675,1.86578,2743.1,2743.0,0.7288]
[1739565235973,0.72881,2743.0,2742.9,0.72882]
[1739565236174,0.72881,2743.0,2742.8,3.2078]
[1739565236175,1.29158,2743.1,2743.0,0.7288]
[1739565236562,41.53422657,2743.2,2743.1,0.72877]
[1739565236768,41.53422657,2743.2,2743.0,0.72878]
[1739565236971,41.53422657,2743.2,2743.1,1.30897]
[1739565237268,40.80546657,2743.2,2743.1,4.51677]
[1739565240481,40.80546657,2743.2,2742.4,3.5726]
[1739565240775,4.63546859,2743.1,2742.4,3.2078]
[1739565240978,5.76546859,2743.1,2742.4,3.2078]
[1739565241180,0.72893,2742.5,2742.4,3.2078]
[1739565241767,0.72893,2742.5,2742.1,3.2078]
[1739565241768,40.8,2742.5,2742.1,3.2078]
[1739565241968,0.72902,2742.2,2742.1,3.2078]
[1739565242684,0.72902,2742.2,2742.1,3.93684]
[1739565243875,0.72902,2742.2,2742.1,3.2078]
[1739565244578,1.1411,2742.4,2742.1,3.93682]
[1739565244784,0.72901,2742.2,2742.1,3.93682]
[1739565244978,0.72901,2742.2,2742.1,3.2078]
[1739565245884,0.72901,2742.2,2742.1,3.93683]
[1739565246071,40.8,2742.5,2742.4,0.72896]
[1739565246273,1.87584,2742.9,2742.7,0.72886]
[1739565246587,1.32014,2742.9,2742.8,3.93665]
[1739565247281,41.3913,2742.9,2742.8,3.93665]
[1739565247486,40.8,2742.9,2742.8,3.93665]
[1739565248175,41.52883,2742.9,2742.8,3.2078]
[1739565248382,0.72891,2742.6,2742.5,3.2078]
[1739565248579,40.8,2742.9,2742.5,3.2078]
[1739565248880,40.8,2742.9,2742.6,0.72889]
[1739565248881,0.72888,2742.7,2742.6,0.72889]
[1739565249588,40.8,2742.9,2742.8,0.72885]
[1739565249782,40.8,2742.9,2742.8,3.93665]
[1739565252489,0.00546657,2743.2,2743.1,0.72877]
[1739565252690,0.00546657,2743.2,2743.1,6.75006859]
[1739565253081,40.80546657,2743.2,2743.1,6.75006859]
[1739565253997,40.80546657,2743.2,2743.1,3.93657]
[1739565255781,40.80546657,2743.2,2743.1,0.72877]
[1739565255987,40.80546657,2743.2,2743.1,3.93657]
[1739565259093,41.53421657,2743.2,2743.1,3.93657]
[1739565259281,40.80546657,2743.2,2743.1,3.93657]
[1739565262778,0.00546657,2743.2,2743.1,3.93657]
[1739565262980,1.82135,2744.0,2743.6,0.72861]
[1739565263182,0.72863,2743.7,2743.6,3.93641]
[1739565263493,41.52863,2743.7,2743.6,3.93641]
[1739565263689,41.52863,2743.7,2743.6,3.2078]
[1739565266687,41.52863,2743.7,2743.4,0.00546657]
[1739565266992,0.72867,2743.5,2743.4,0.00546657]
[1739565267187,0.72867,2743.5,2743.4,0.73415657]
[1739565267593,41.52867,2743.5,2743.4,0.73415657]
[1739565267990,40.8,2743.5,2743.4,0.73415657]
[1739565268288,1.30473657,2743.9,2743.8,0.72859]
[1739565268895,42.10473657,2743.9,2743.8,0.72859]
[1739565269297,0.72859,2743.8,2743.7,1.30499]
[1739565269893,41.37616657,2743.9,2743.8,0.72859]
[1739565270088,40.80546657,2743.9,2743.8,0.72859]
[1739565270397,0.00546657,2743.9,2743.8,0.72859]
[1739565272700,0.00546657,2743.9,2743.8,2.34959]
[1739565273091,40.80546657,2743.9,2743.8,2.34959]
[1739565273899,41.53402657,2743.9,2743.8,0.72859]
[1739565274099,40.80546657,2743.9,2743.8,0.72859]
[1739565279101,41.53402657,2743.9,2743.8,0.72859]
[1739565279294,40.80546657,2743.9,2743.8,0.72859]
[1739565280100,41.53402657,2743.9,2743.8,0.72859]
[1739565280302,40.80546657,2743.9,2743.8,0.72859]
[1739565280800,41.53402657,2743.9,2743.8,0.72859]
[1739565281002,0.7286,2743.8,2743.7,0.72859]
[1739565281304,1.2892,2743.8,2743.7,0.72859]
[1739565282003,0.72861,2743.7,2743.6,3.93643]
[1739565283214,0.72861,2743.7,2743.6,3.2078]
[1739565285402,0.72861,2743.7,2743.6,3.93644]
[1739565285607,1.28921,2743.8,2743.7,0.72861]
[1739565286499,0.5606,2743.8,2743.7,0.72861]
[1739565286698,0.5606,2743.8,2743.7,2.41561]
[1739565287608,1.28919,2743.8,2743.7,2.41561]
[1739565287808,41.53403657,2743.9,2743.8,0.72859]
[1739565288407,0.72859,2743.8,2743.7,0.5546]
[1739565288611,0.72861,2743.7,2743.6,3.2078]
[1739565289108,0.72861,2743.7,2743.6,3.93644]
[1739565289501,0.72861,2743.8,2743.7,0.72859]
[1739565293115,40.80546657,2743.9,2743.8,0.72859]
[1739565295216,0.00546657,2743.9,2743.8,0.72859]
[1739565304408,0.5937,2744.6,2743.8,6.0]
[1739565304617,0.5937,2744.6,2744.5,6.74969859]
[1739565305020,40.8,2744.7,2744.6,0.72838]
[1739565305623,40.8,2744.7,2744.5,3.2078]
[1739565305825,0.72838,2744.6,2744.5,4.8278]
[1739565306024,1.27888,2744.6,2744.5,4.8278]
[1739565306322,1.27888,2744.6,2744.5,3.2078]
[1739565306820,1.27888,2744.6,2744.3,1.62]
[1739565307015,0.72843,2744.4,2744.3,1.62]
[1739565307215,0.72843,2744.4,2744.3,0.72845]
[1739565307416,0.72846,2744.3,2744.2,0.72847]
[1739565307618,1.29126,2744.3,2744.2,0.72847]
[1739565307823,0.5628,2744.3,2744.2,0.72847]
[1739565308218,1.29125,2744.3,2744.2,0.72847]
[1739565309023,0.5628,2744.3,2744.2,0.72847]
[1739565309525,1.29125,2744.3,2744.2,0.72847]
[1739565309917,0.5628,2744.3,2744.2,0.72847]
[1739565310323,1.29125,2744.3,2744.2,0.72847]
[1739565310725,0.5628,2744.3,2744.1,4.8278]
[1739565310922,1.29127,2744.3,2744.2,0.72848]
[1739565313429,0.72848,2744.2,2744.1,3.2078]
[1739565314319,0.5628,2744.3,2744.1,3.2078]
[1739565314519,0.72848,2744.2,2744.1,3.93628]
[1739565315323,0.5628,2744.3,2744.1,3.2078]
[1739565315530,0.5628,2744.3,2744.2,0.72848]
[1739565317025,40.8,2744.7,2744.2,0.72848]
[1739565317026,40.8,2744.7,2744.6,0.72838]
[1739565317731,41.52835,2744.7,2744.6,0.72838]
[1739565318226,40.8,2744.7,2744.6,0.72838]
[1739565319022,40.8,2744.7,2744.5,7.18409859]
[1739565319223,0.72838,2744.6,2744.5,4.5146]
[1739565319419,1.31688,2744.6,2744.5,4.5146]
[1739565319826,40.8,2744.7,2744.6,0.72838]
[1739565320027,41.52835,2744.7,2744.6,0.72838]
[1739565320430,40.8,2744.7,2744.6,0.72838]
[1739565320931,41.52835,2744.7,2744.6,0.72838]
[1739565321120,41.52835,2744.7,2744.5,3.2078]
[1739565321121,0.72838,2744.6,2744.5,3.2078]
[1739565321430,0.5474,2744.6,2744.2,0.72847]
[1739565321626,1.1436,2744.5,2744.1,3.2078]
[1739565321924,0.72848,2744.2,2744.1,3.2078]
[1739565324435,0.72848,2744.2,2744.1,3.93631]
[1739565324624,0.72848,2744.2,2744.1,3.2078]
[1739565327429,0.72858,2743.9,2743.8,0.72856]
[1739565327624,0.72859,2743.8,2743.7,3.93641]
[1739565328025,0.72859,2743.9,2743.8,0.72856]
[1739565329033,41.52859,2743.9,2743.8,0.72856]
[1739565330834,40.8,2743.9,2743.7,3.2078]
[1739565331026,0.72859,2743.8,2743.7,3.9364]
[1739565331627,41.52859,2743.8,2743.7,3.9364]
[1739565338136,41.52859,2743.8,2743.7,3.2078]
[1739565339923,42.62151,2743.8,2743.4,0.00546657]
[1739565340125,0.72867,2743.5,2743.4,0.73415657]
[1739565340934,42.62151,2743.8,2743.4,0.00546657]
[1739565341139,40.8,2743.8,2743.5,3.2078]
[1739565341342,0.72864,2743.7,2743.6,0.72862]
[1739565341638,40.8,2743.8,2743.5,3.2078]
[1739565341833,0.72864,2743.6,2743.5,3.93644]
[1739565343244,0.5438,2743.9,2743.5,5.02947]
[1739565343535,0.5438,2743.9,2743.4,1.82717657]
[1739565343536,0.72851,2744.2,2744.1,0.72847]
[1739565343936,41.52851,2744.2,2744.1,0.72847]
[1739565344440,0.00546657,2744.9,2744.1,4.8268]
[1739565344641,0.73376657,2744.9,2744.8,3.2078]
[1739565344936,0.73376657,2744.9,2744.8,3.7635]
[1739565345439,40.80546657,2744.9,2744.8,3.7635]
[1739565346034,40.80546657,2744.9,2744.8,4.49182]
[1739565346239,40.80546657,2744.9,2744.8,3.7635]
[1739565346642,40.80546657,2744.9,2744.8,4.49182]
[1739565351847,0.72812,2745.6,2745.4,0.72816]
[1739565352146,0.72812,2745.6,2745.5,3.2078]
[1739565352349,41.52812,2745.6,2745.5,3.2078]
[1739565353053,40.8,2745.6,2745.5,3.93594]
[1739565353747,40.8,2745.6,2745.5,3.2078]
[1739565353949,41.52811,2745.6,2745.5,3.2078]
[1739565355455,41.52811,2745.6,2745.5,3.93594]
[1739565358451,41.52811,2745.6,2745.5,3.2078]
[1739565359051,40.8,2745.6,2745.5,3.93594]
[1739565360451,41.52811,2745.6,2745.5,3.93594]
[1739565360755,41.52811,2745.6,2745.5,3.2078]
[1739565361742,41.52811,2745.6,2745.5,3.93594]
[1739565362147,41.52811,2745.6,2745.3,0.00546657]
[1739565362148,0.72816,2745.4,2745.3,0.00546657]
[1739565362655,45.43378859,2745.6,2745.4,0.72815]
[1739565362656,0.72816,2745.5,2745.4,0.72815]
[1739565362953,0.72816,2745.4,2745.3,0.73364657]
[1739565363355,0.72816,2745.4,2745.3,0.73363657]
[1739565363551,41.52812,2745.6,2745.5,0.72814]
[1739565363748,40.8,2745.6,2745.5,0.72814]
[1739565364155,41.52811,2745.6,2745.5,0.72814]
[1739565364549,40.8,2745.6,2745.5,3.93594]
[1739565364854,0.00546657,2745.8,2745.5,4.8258]
[1739565365054,0.72811,2745.6,2745.5,3.2078]
[1739565365357,41.52811,2745.6,2745.5,3.2078]
[1739565365557,41.52811,2745.6,2745.5,3.93594]
[1739565366354,41.52811,2745.6,2745.5,3.2078]
[1739565367556,42.09451,2745.6,2745.5,3.2078]
[1739565368463,42.09451,2745.6,2745.5,3.93594]
[1739565368656,41.3664,2745.6,2745.5,3.93594]
[1739565369259,42.09451,2745.6,2745.5,3.93594]
[1739565370257,41.3664,2745.6,2745.5,3.93594]
[1739565370462,40.8,2745.6,2745.5,3.93594]
[1739565370661,41.52811,2745.6,2745.5,3.93594]
[1739565371464,40.8,2745.6,2745.5,3.93594]
[1739565371663,40.8,2745.6,2745.5,4.50414]
[1739565373164,41.52811,2745.6,2745.5,4.50414]
[1739565374467,40.8,2745.6,2745.5,4.50414]
[1739565374877,41.52811,2745.6,2745.5,4.50414]
[1739565375676,40.8,2745.6,2745.5,4.50414]
[1739565375876,0.00546657,2745.8,2745.7,0.72808]
[1739565376077,0.00546657,2745.8,2745.7,3.54157859]
[1739565381680,0.00546657,2745.8,2745.7,3.72314028]
[1739565388683,0.00546657,2745.8,2745.7,9.72314028]
[1739565390083,40.8,2746.6,2745.7,8.99506028]
[1739565390285,1.30261,2746.8,2746.6,0.72782]
[1739565390484,0.5748,2746.8,2746.5,6.74914859]
[1739565390685,0.72785,2746.6,2746.5,6.02129859]
[1739565390883,0.72785,2746.6,2746.5,3.2078]
[1739565392594,0.72792,2746.3,2746.2,1.616]
[1739565392995,41.52792,2746.3,2746.2,1.616]
[1739565393899,0.72798,2746.1,2746.0,3.2078]
[1739565394196,0.72798,2746.1,2746.0,4.8238]
[1739565395397,0.72798,2746.1,2746.0,5.5518]
[1739565396588,0.72798,2746.1,2746.0,4.8238]
[1739565397592,0.72798,2746.1,2746.0,5.5518]
[1739565397789,0.5358,2746.2,2746.0,4.8238]
[1739565397995,0.72798,2746.1,2746.0,5.55178]